fUST/lending_fUST_20250301
["ID","MTS","AMOUNT","RATE_DAILY","PERIOD"]
[354919443,1740817842547,-500.0,0.00032876,2]
[354919444,1740817842556,-500.0,0.00032876,2]
[354919446,1740817842566,-624.28969608,0.00032876,2]
[354919447,1740817842575,-500.0,0.00032876,2]
[354919449,1740817842584,-500.0,0.00032876,2]
[354919451,1740817842594,-703.58,0.00032876,2]
[354919452,1740817842603,-500.0,0.00032876,2]
[354919453,1740817842613,-618.17,0.00032876,2]
[354919455,1740817842622,-500.0,0.00032876,2]
[354919457,1740817842632,-500.0,0.00032876,2]
[354919458,1740817842642,-500.0,0.00032876,2]
[354919459,1740817842652,-500.0,0.00032876,2]
[354919460,1740817842661,-500.0,0.00032876,2]
[354919461,1740817842671,-659.88,0.00032876,2]
[354919462,1740817842681,-500.0,0.00032876,2]
[354919463,1740817842690,-508.39,0.00032876,2]
[354919464,1740817842700,-597.85,0.00032876,2]
[354919465,1740817842710,-500.0,0.00032876,2]
[354919466,1740817842720,-500.0,0.00032876,2]
[354919467,1740817842729,-500.0,0.00032876,2]
[354919468,1740817842739,-500.0,0.00032876,2]
[354919469,1740817842749,-500.0,0.00032876,2]
[354919470,1740817842758,-500.0,0.00032876,2]
[354919471,1740817842768,-500.0,0.00032876,2]
[354919472,1740817842777,-500.0,0.00032876,2]
[354919473,1740817842787,-500.0,0.00032876,2]
[354919474,1740817842796,-500.0,0.00032876,2]
[354919475,1740817842806,-500.0,0.00032876,2]
[354919476,1740817842815,-505.73008203,0.00032876,2]
[354919477,1740817842824,-913.27,0.00032876,2]
[354919478,1740817842834,-739.13,0.00032876,2]
[354919479,1740817842843,-151.89046714,0.00032876,2]
[354919480,1740817842853,-500.0,0.00032876,2]
[354919481,1740817842862,-1115.87,0.00032876,2]
[354919482,1740817842872,-1112.35,0.00032876,2]
[354919483,1740817842881,-592.5,0.00032876,2]
[354919484,1740817842891,-500.0,0.00032876,2]
[354919485,1740817842900,-634.47852463,0.00032876,2]
[354919486,1740817842911,-500.0,0.00032876,2]
[354919487,1740817842921,-500.0,0.00032876,2]
[354919488,1740817842931,-1027.75,0.00032876,2]
[354919489,1740817842944,-500.0,0.00032876,2]
[354919490,1740817842954,-500.0,0.00032876,2]
[354919491,1740817842963,-654.89,0.00032876,2]
[354919492,1740817842972,-500.0,0.00032876,2]
[354919493,1740817842983,-500.0,0.00032876,2]
[354919494,1740817842992,-631.6,0.00032876,2]
[354919495,1740817843001,-537.13,0.00032876,2]
[354919496,1740817843011,-500.0,0.00032876,2]
[354919498,1740817843020,-500.0,0.00032876,2]
[354919500,1740817843030,-500.0,0.00032876,2]
[354919502,1740817843039,-500.0,0.00032876,120]
[354919504,1740817843049,-500.0,0.00032876,2]
[354919506,1740817843058,-187.77379486,0.00032876,2]
[354919507,1740817843068,-500.0,0.00032876,2]
[354919508,1740817843078,-1174.68,0.00032876,2]
[354919509,1740817843087,-500.0,0.00032876,2]
[354919511,1740817843097,-790.47,0.00032876,2]
[354919512,1740817843107,-523.57,0.00032876,2]
[354919514,1740817843117,-500.0,0.00032876,2]
[354919516,1740817843126,-500.0,0.00032876,2]
[354919518,1740817843136,-500.0,0.00032876,2]
[354919520,1740817843146,-500.0,0.00032876,2]
[354919522,1740817843156,-500.0,0.00032876,2]
[354919524,1740817843166,-500.0,0.00032876,2]
[354919526,1740817843175,-500.0,0.00032876,2]
[354919528,1740817843185,-500.0,0.00032876,2]
[354919529,1740817843194,-538.02730819,0.00032876,2]
[354919530,1740817843204,-1000.0,0.00032876,2]
[354919531,1740817843213,-500.0,0.00032876,2]
[354919532,1740817843223,-500.0,0.00032876,2]
[354919533,1740817843231,-500.0,0.00032876,2]
[354919534,1740817843241,-500.0,0.00032876,2]
[354919535,1740817843250,-1456.74,0.00032876,2]
[354919536,1740817843260,-500.0,0.00032876,2]
[354919537,1740817843269,-500.0,0.00032876,2]
[354919538,1740817843277,-500.0,0.00032876,2]
[354919539,1740817843287,-500.0,0.00032876,2]
[354919540,1740817843296,-500.0,0.00032876,2]
[354919541,1740817843306,-500.0,0.00032876,2]
[354919542,1740817843315,-500.0,0.00032876,2]
[354919543,1740817843324,-501.47775902,0.00032876,2]
[354919544,1740817843333,-500.0,0.00032876,2]
[354919545,1740817843342,-502.61749203,0.00032876,2]
[354919546,1740817843352,-500.0,0.00032876,2]
[354919547,1740817843361,-500.0,0.00032876,2]
[354919548,1740817843370,-500.0,0.00032876,2]
[354919549,1740817843380,-502.59422479,0.00032876,2]
[354919550,1740817843389,-500.0,0.00032876,2]
[354919551,1740817843398,-500.0,0.00032876,2]
[354919552,1740817843408,-1058.89,0.00032876,2]
[354919553,1740817843417,-500.0,0.00032876,2]
[354919554,1740817843426,-500.0,0.00032876,2]
[354919555,1740817843436,-500.0,0.00032876,2]
[354919556,1740817843445,-500.0,0.00032876,2]
[354919557,1740817843455,-508.27184429,0.00032876,2]
[354919558,1740817843464,-500.0,0.00032876,2]
[354919559,1740817843473,-500.0,0.00032876,2]
[354919560,1740817843483,-500.0,0.00032876,2]
[354919561,1740817843491,-739.6,0.00032876,2]
[354919562,1740817843501,-739.45,0.00032876,2]
[354919563,1740817843510,-660.48,0.00032876,2]
[354919564,1740817843519,-500.0,0.00032876,2]
[354919565,1740817843529,-500.0,0.00032876,2]
[354919566,1740817843538,-500.0,0.00032876,2]
[354919567,1740817843547,-500.0,0.00032876,2]
[354919568,1740817843557,-526.29,0.00032876,2]
[354919569,1740817843566,-500.0,0.00032876,2]
[354919570,1740817843575,-500.0,0.00032876,2]
[354919571,1740817843585,-255.31704179,0.00032876,2]
[354919572,1740817843594,-500.0,0.00032876,2]
[354919573,1740817843604,-500.0,0.00032876,2]
[354919574,1740817843613,-500.0,0.00032876,2]
[354919575,1740817843623,-590.99541724,0.00032876,2]
[354919576,1740817843632,-2207.39,0.00032876,2]
[354919577,1740817843642,-500.0,0.00032876,2]
[354919578,1740817843652,-500.0,0.00032876,2]
[354919579,1740817843662,-504.05068478,0.00032876,2]
[354919580,1740817843672,-500.0,0.00032876,2]
[354919581,1740817843682,-1862.06,0.00032876,2]
[354919582,1740817843692,-500.0,0.00032876,2]
[354919583,1740817843701,-500.0,0.00032876,2]
[354919584,1740817843710,-500.0,0.00032876,2]
[354919585,1740817843719,-500.0,0.00032876,2]
[354919586,1740817843728,-500.0,0.00032876,2]
[354919587,1740817843738,-632.33112071,0.00032876,2]
[354919588,1740817843747,-500.0,0.00032876,2]
[354919589,1740817843756,-500.0,0.00032876,2]
[354919590,1740817843766,-500.0,0.00032876,2]
[354919591,1740817843775,-500.0,0.00032876,2]
[354919592,1740817843784,-510.19824017,0.00032876,2]
[354919593,1740817843794,-8668.19,0.00032876,2]
[354919595,1740817843804,-500.0,0.00032876,2]
[354919596,1740817843815,-500.0,0.00032876,2]
[354919597,1740817843824,-500.0,0.00032876,2]
[354919598,1740817843834,-500.0,0.00032876,2]
[354919599,1740817843844,-1358.04,0.00032876,2]
[354919600,1740817843853,-500.0,0.00032876,2]
[354919601,1740817843863,-833.84,0.00032876,2]
[354919602,1740817843872,-500.0,0.00032876,2]
[354919603,1740817843881,-1751.3,0.00032876,2]
[354919604,1740817843891,-500.0,0.00032876,2]
[354919605,1740817843901,-500.0,0.00032876,2]
[354919606,1740817843912,-15925.0,0.00032876,2]
[354919607,1740817843921,-500.0,0.00032876,2]
[354919608,1740817843932,-500.0,0.00032876,2]
[354919609,1740817843944,-500.0,0.00032876,2]
[354919610,1740817843954,-500.0,0.00032876,2]
[354919611,1740817843963,-1797.34,0.00032876,2]
[354919612,1740817843975,-12771.61,0.00032876,2]
[354919613,1740817843984,-500.0,0.00032876,2]
[354919614,1740817843993,-501.07904265,0.00032876,2]
[354919615,1740817844003,-406.66655941,0.00032876,2]
[354919616,1740817844014,-500.0,0.00032876,2]
[354919617,1740817844024,-500.0,0.00032876,2]
[354919618,1740817844034,-500.0,0.00032876,2]
[354919619,1740817844043,-500.0,0.00032876,2]
[354919620,1740817844052,-500.0,0.00032876,2]
[354919621,1740817844062,-500.0,0.00032876,2]
[354919622,1740817844071,-1755.88,0.00032876,2]
[354919623,1740817844080,-671.16,0.00032876,2]
[354919624,1740817844089,-500.0,0.00032876,2]
[354919625,1740817844098,-500.0,0.00032876,2]
[354919626,1740817844107,-500.0,0.00032876,2]
[354919627,1740817844116,-1262.21,0.00032876,2]
[354919628,1740817844125,-500.0,0.00032876,2]
[354919629,1740817844134,-500.0,0.00032876,2]
[354919630,1740817844143,-500.0,0.00032876,2]
[354919631,1740817844152,-261.59417179,0.00032876,2]
[354919632,1740817844162,-500.0,0.00032876,2]
[354919633,1740817844170,-500.0,0.00032876,2]
[354919634,1740817844179,-621.42163615,0.00032876,2]
[354919635,1740817844189,-500.0,0.00032876,2]
[354919636,1740817844198,-500.0,0.00032876,2]
[354919637,1740817844207,-500.0,0.00032876,2]
[354919638,1740817844216,-2981.03,0.00032876,2]
[354919639,1740817844225,-2001.64,0.00032876,2]
[354919640,1740817844234,-500.0,0.00032876,2]
[354919641,1740817844243,-1602.3,0.00032876,2]
[354919642,1740817844252,-500.0,0.00032876,2]
[354919643,1740817844261,-500.0,0.00032876,2]
[354919644,1740817844270,-2113.48,0.00032876,2]
[354919645,1740817844279,-930.6,0.00032876,2]
[354919646,1740817844288,-500.0,0.00032876,2]
[354919647,1740817844297,-600.93,0.00032876,2]
[354919648,1740817844306,-500.0,0.00032876,2]
[354919649,1740817844315,-500.0,0.00032876,2]
[354919650,1740817844324,-500.0,0.00032876,2]
[354919651,1740817844334,-500.0,0.00032876,2]
[354919652,1740817844343,-500.0,0.00032876,2]
[354919653,1740817844352,-1051.04,0.00032876,2]
[354919654,1740817844361,-500.0,0.00032876,2]
[354919655,1740817844370,-500.0,0.00032876,2]
[354919656,1740817844379,-500.0,0.00032876,2]
[354919657,1740817844388,-500.0,0.00032876,2]
[354919658,1740817844398,-500.0,0.00032876,2]
[354919659,1740817844407,-500.0,0.00032876,2]
[354919660,1740817844416,-500.0,0.00032876,2]
[354919661,1740817844425,-500.0,0.00032876,2]
[354919662,1740817844435,-500.0,0.00032876,2]
[354919663,1740817844444,-500.0,0.00032876,2]
[354919664,1740817844453,-202836.62,0.00032876,2]
[354919665,1740817844462,-500.0,0.00032876,2]
[354919666,1740817844472,-1814.82,0.00032876,2]
[354919667,1740817844481,-500.0,0.00032876,2]
[354919668,1740817844490,-3266.74,0.00032876,2]
[354919669,1740817844499,-500.0,0.00032876,2]
[354919670,1740817844509,-718.7,0.00032876,2]
[354919671,1740817844518,-500.0,0.00032876,2]
[354919672,1740817844527,-1465.12,0.00032876,2]
[354919673,1740817844536,-500.0,0.00032876,2]
[354919674,1740817844545,-500.0,0.00032876,2]
[354919675,1740817844555,-2402.48,0.00032876,2]
[354919676,1740817844564,-500.0,0.00032876,2]
[354919677,1740817844574,-500.0,0.00032876,2]
[354919678,1740817844583,-500.0,0.00032876,2]
[354919679,1740817844592,-500.0,0.00032876,2]
[354919680,1740817844602,-500.0,0.00032876,2]
[354919681,1740817844611,-500.0,0.00032876,2]
[354919682,1740817844620,-500.0,0.00032876,2]
[354919683,1740817844630,-500.0,0.00032876,2]
[354919684,1740817844639,-588.26,0.00032876,2]
[354919685,1740817844649,-500.0,0.00032876,2]
[354919686,1740817844659,-500.0,0.00032876,2]
[354919687,1740817844669,-1991.31,0.00032876,2]
[354919688,1740817844678,-500.0,0.00032876,2]
[354919689,1740817844688,-282.03434974,0.00032876,2]
[354919690,1740817844697,-4102.92,0.00032876,2]
[354919691,1740817844707,-1225.17,0.00032876,2]
[354919692,1740817844717,-1594.25,0.00032876,2]
[354919693,1740817844726,-514.0,0.00032876,2]
[354919694,1740817844736,-695.98,0.00032876,2]
[354919695,1740817844746,-500.0,0.00032876,2]
[354919696,1740817844756,-500.0,0.00032876,2]
[354919697,1740817844765,-500.0,0.00032876,2]
[354919698,1740817844775,-686.87,0.00032876,2]
[354919699,1740817844784,-500.0,0.00032876,2]
[354919701,1740817844794,-500.0,0.00032876,2]
[354919702,1740817844803,-500.0,0.00032876,2]
[354919703,1740817844813,-500.0,0.00032876,2]
[354919704,1740817844823,-500.0,0.00032876,2]
[354919705,1740817844833,-2077.92,0.00032876,2]
[354919706,1740817844844,-500.0,0.00032876,2]
[354919707,1740817844854,-500.0,0.00032876,2]
[354919708,1740817844863,-984.35,0.00032876,2]
[354919709,1740817844873,-500.0,0.00032876,2]
[354919710,1740817844883,-645.4,0.00032876,2]
[354919711,1740817844892,-500.0,0.00032876,2]
[354919712,1740817844902,-500.0,0.00032876,2]
[354919713,1740817844913,-350.43520324,0.00032876,2]
[354919714,1740817844923,-500.0,0.00032876,2]
[354919715,1740817844935,-500.0,0.00032876,2]
[354919716,1740817845064,-7070.88,0.00032876,2]
[354919717,1740817845074,-500.0,0.00032876,2]
[354919718,1740817845084,-1244.17,0.00032876,2]
[354919719,1740817845094,-500.0,0.00032876,2]
[354919720,1740817845103,-500.0,0.00032876,2]
[354919721,1740817845113,-500.0,0.00032876,2]
[354919722,1740817845122,-500.0,0.00032876,2]
[354919723,1740817845132,-804.55,0.00032876,2]
[354919724,1740817845142,-2216.42,0.00032876,2]
[354919725,1740817845151,-1268.75,0.00032876,2]
[354919726,1740817845160,-500.0,0.00032876,2]
[354919727,1740817845169,-500.0,0.00032876,2]
[354919728,1740817845179,-500.0,0.00032876,2]
[354919729,1740817845189,-500.0,0.00032876,2]
[354919730,1740817845199,-500.0,0.00032876,2]
[354919731,1740817845208,-500.0,0.00032876,2]
[354919732,1740817845218,-500.0,0.00032876,2]
[354919733,1740817845228,-531.97,0.00032876,2]
[354919735,1740817845237,-604.24,0.00032876,2]
[354919737,1740817845248,-553.58,0.00032876,2]
[354919739,1740817845257,-500.0,0.00032876,2]
[354919741,1740817845267,-500.0,0.00032876,2]
[354919742,1740817845277,-1466.88,0.00032876,2]
[354919743,1740817845286,-2023.28,0.00032876,2]
[354919744,1740817845296,-1302.88,0.00032876,2]
[354919745,1740817845306,-583.39,0.00032876,2]
[354919746,1740817845315,-500.0,0.00032876,2]
[354919747,1740817845324,-245704.4992468,0.00032876,2]
[354919748,1740817845334,-500.0,0.00032876,2]
[354919749,1740817845343,-434.02940829,0.00032876,2]
[354919750,1740817845353,-500.0,0.00032876,2]
[354919751,1740817845362,-500.0,0.00032876,2]
[354919752,1740817845372,-12171.81,0.00032876,2]
[354919753,1740817845382,-500.0,0.00032876,2]
[354919754,1740817845391,-785.36,0.00032876,2]
[354919755,1740817845401,-948.37,0.00032876,2]
[354919756,1740817845410,-500.0,0.00032876,2]
[354919757,1740817845420,-500.0,0.00032876,2]
[354919758,1740817845429,-905.46,0.00032876,2]
[354919759,1740817845439,-556.88,0.00032876,2]
[354919760,1740817845448,-500.0,0.00032876,2]
[354919761,1740817845459,-1099.83,0.00032876,2]
[354919762,1740817845469,-1099.83,0.00032876,2]
[354919763,1740817845479,-1099.83,0.00032876,2]
[354919764,1740817845489,-548.05,0.00032876,2]
[354919765,1740817845499,-1099.83,0.00032876,2]
[354919766,1740817845509,-1099.83,0.00032876,2]
[354919767,1740817845519,-500.0,0.00032876,2]
[354919768,1740817845529,-1099.83,0.00032876,2]
[354919769,1740817845539,-1099.83,0.00032876,2]
[354919770,1740817845549,-1099.83,0.00032876,2]
[354919771,1740817845558,-1099.83,0.00032876,2]
[354919772,1740817845568,-1099.83,0.00032876,2]
[354919773,1740817845578,-1099.83,0.00032876,2]
[354919774,1740817845588,-500.0,0.00032876,2]
[354919775,1740817845597,-1099.83,0.00032876,2]
[354919777,1740817845607,-500.0,0.00032876,2]
[354919778,1740817845617,-1099.83,0.00032876,2]
[354919779,1740817845627,-1099.83,0.00032876,2]
[354919780,1740817845637,-1099.83,0.00032876,2]
[354919781,1740817845647,-1099.83,0.00032876,2]
[354919782,1740817845657,-500.0,0.00032876,2]
[354919783,1740817845669,-634.71,0.00032876,2]
[354919784,1740817845679,-1099.83,0.00032876,2]
[354919785,1740817845688,-1099.83,0.00032876,2]
[354919786,1740817845699,-1099.83,0.00032876,2]
[354919787,1740817845709,-1099.83,0.00032876,2]
[354919789,1740817845718,-1099.83,0.00032876,2]
[354919791,1740817845728,-1099.83,0.00032876,2]
[354919793,1740817845738,-1099.83,0.00032876,2]
[354919794,1740817845748,-500.0,0.00032876,2]
[354919795,1740817845757,-1099.99199601,0.00032876,2]
[354919796,1740817845767,-1396.74,0.00032876,2]
[354919797,1740817845777,-500.0,0.00032876,2]
[354919798,1740817845787,-500.0,0.00032876,2]
[354919799,1740817845797,-200.0,0.00032876,2]
[354919800,1740817845807,-500.0,0.00032876,2]
[354919801,1740817845816,-500.0,0.00032876,2]
[354919802,1740817845826,-500.0,0.00032876,2]
[354919803,1740817845836,-3193.13,0.00032876,2]
[354919804,1740817845845,-500.0,0.00032876,2]
[354919805,1740817845855,-1689.31,0.00032876,2]
[354919806,1740817845865,-500.0,0.00032876,2]
[354919807,1740817845874,-500.0,0.00032876,2]
[354919808,1740817845884,-746.67,0.00032876,2]
[354919809,1740817845896,-165.40084644,0.00032876,10]
[354919810,1740817845906,-500.0,0.00032876,2]
[354919811,1740817845916,-1264.27,0.00032876,2]
[354919812,1740817845926,-500.0,0.00032876,2]
[354919813,1740817845943,-1546.75,0.00032876,2]
[354919814,1740817845963,-500.0,0.00032876,2]
[354919815,1740817845977,-500.0,0.00032876,2]
[354919816,1740817845987,-500.0,0.00032876,2]
[354919817,1740817845997,-500.0,0.00032876,2]
[354919818,1740817846007,-500.0,0.00032876,2]
[354919819,1740817846018,-500.0,0.00032876,2]
[354919820,1740817846028,-540.9947673,0.00032876,2]
[354919821,1740817846039,-500.0,0.00032876,2]
[354919822,1740817846050,-567.8561225,0.00032876,2]
[354919823,1740817846059,-1095.66,0.00032876,2]
[354919824,1740817846069,-500.0,0.00032876,2]
[354919825,1740817846079,-500.0,0.00032876,2]
[354919826,1740817846088,-500.0,0.00032876,2]
[354919827,1740817846098,-500.0,0.00032876,2]
[354919828,1740817846108,-500.0,0.00032876,2]
[354919829,1740817846118,-576.25,0.00032876,2]
[354919830,1740817846128,-3370.93,0.00032876,2]
[354919831,1740817846138,-500.0,0.00032876,2]
[354919832,1740817846149,-500.0,0.00032876,2]
[354919833,1740817846159,-531.32,0.00032876,2]
[354919834,1740817846170,-500.0,0.00032876,2]
[354919835,1740817846181,-500.0,0.00032876,2]
[354919836,1740817846191,-1301.98,0.00032876,2]
[354919837,1740817846201,-500.0,0.00032876,2]
[354919838,1740817846211,-951.34,0.00032876,2]
[354919839,1740817846222,-245.78100725,0.00032876,2]
[354919840,1740817846232,-1204.25,0.00032876,5]
[354919841,1740817846243,-500.0,0.00032876,2]
[354919842,1740817846253,-500.0,0.00032876,2]
[354919843,1740817846264,-1740.8,0.00032876,2]
[354919844,1740817846274,-500.0,0.00032876,2]
[354919845,1740817846285,-500.0,0.00032876,2]
[354919846,1740817846295,-500.0,0.00032876,2]
[354919847,1740817846305,-500.0,0.00032876,2]
[354919848,1740817846315,-500.0,0.00032876,2]
[354919849,1740817846326,-500.0,0.00032876,2]
[354919850,1740817846336,-500.0,0.00032876,2]
[354919851,1740817846347,-767.54,0.00032876,2]
[354919852,1740817846357,-1443.22,0.00032876,2]
[354919853,1740817846367,-500.0,0.00032876,2]
[354919854,1740817846377,-500.0,0.00032876,2]
[354919855,1740817846387,-6662.49,0.00032876,2]
[354919856,1740817846397,-954.47,0.00032876,2]
[354919857,1740817846407,-40921.83,0.00032876,2]
[354919858,1740817846416,-500.0,0.00032876,2]
[354919859,1740817846426,-500.0,0.00032876,2]
[354919860,1740817846437,-478.32740067,0.00032876,2]
[354919861,1740817846448,-500.0,0.00032876,2]
[354919862,1740817846458,-500.0,0.00032876,2]
[354919863,1740817846467,-547.0,0.00032876,2]
[354919864,1740817846476,-500.0,0.00032876,2]
[354919865,1740817846485,-1480.22,0.00032876,2]
[354919866,1740817846495,-7312.56,0.00032876,2]
[354919867,1740817846504,-500.0,0.00032876,2]
[354919868,1740817846513,-500.0,0.00032876,2]
[354919869,1740817846522,-500.0,0.00032876,2]
[354919870,1740817846532,-500.0,0.00032876,2]
[354919871,1740817846542,-500.0,0.00032876,2]
[354919872,1740817846551,-500.0,0.00032876,2]
[354919873,1740817846560,-2133.08,0.00032876,2]
[354919874,1740817846571,-500.0,0.00032876,2]
[354919875,1740817846580,-639.69965995,0.00032876,2]
[354919876,1740817846589,-500.0,0.00032876,2]
[354919877,1740817846598,-500.0,0.00032876,2]
[354919878,1740817846608,-500.0,0.00032876,2]
[354919879,1740817846619,-500.0,0.00032876,2]
[354919880,1740817846628,-500.0,0.00032876,2]
[354919881,1740817846637,-2413.06,0.00032876,2]
[354919882,1740817846646,-500.0,0.00032876,2]
[354919883,1740817846656,-500.0,0.00032876,2]
[354919884,1740817846665,-500.0,0.00032876,2]
[354919885,1740817846675,-500.0,0.00032876,2]
[354919886,1740817846684,-500.0,0.00032876,2]
[354919887,1740817846693,-214.48511903,0.00032876,2]
[354919888,1740817846703,-500.0,0.00032876,2]
[354919889,1740817846712,-500.0,0.00032876,2]
[354919890,1740817846723,-1358.58,0.00032876,2]
[354919891,1740817846733,-500.0,0.00032876,2]
[354919892,1740817846742,-500.0,0.00032876,2]
[354919893,1740817846752,-745.33,0.00032876,2]
[354919894,1740817846761,-1069.67,0.00032876,2]
[354919895,1740817846771,-500.0,0.00032876,2]
[354919896,1740817846780,-500.0,0.00032876,2]
[354919897,1740817846789,-500.0,0.00032876,2]
[354919898,1740817846799,-500.0,0.00032876,2]
[354919899,1740817846808,-500.0,0.00032876,2]
[354919900,1740817846817,-500.0,0.00032876,2]
[354919901,1740817846827,-500.0,0.00032876,2]
[354919902,1740817846836,-681.05,0.00032876,2]
[354919903,1740817846845,-500.0,0.00032876,2]
[354919904,1740817846855,-1931.81,0.00032876,2]
[354919905,1740817846865,-500.0,0.00032876,2]
[354919906,1740817846875,-500.0,0.00032876,2]
[354919907,1740817846884,-500.0,0.00032876,2]
[354919908,1740817846894,-500.0,0.00032876,2]
[354919909,1740817846903,-500.0,0.00032876,2]
[354919910,1740817846916,-1220.43,0.00032876,2]
[354919911,1740817846926,-277.89555097,0.00032876,2]
[354919912,1740817846938,-500.0,0.00032876,2]
[354919913,1740817846947,-4099.73,0.00032876,2]
[354919914,1740817846957,-518.77,0.00032876,120]
[354919915,1740817846967,-500.0,0.00032876,2]
[354919916,1740817846977,-830.44,0.00032876,2]
[354919917,1740817846987,-500.0,0.00032876,2]
[354919918,1740817846997,-600.22767263,0.00032876,2]
[354919919,1740817847008,-500.0,0.00032876,2]
[354919920,1740817847018,-500.0,0.00032876,2]
[354919921,1740817847027,-2786.98,0.00032876,2]
[354919922,1740817847037,-500.0,0.00032876,2]
[354919923,1740817847047,-500.0,0.00032876,2]
[354919924,1740817847057,-500.0,0.00032876,2]
[354919925,1740817847067,-500.0,0.00032876,2]
[354919926,1740817847076,-573.77727748,0.00032876,2]
[354919927,1740817847085,-500.0,0.00032876,2]
[354919928,1740817847095,-500.0,0.00032876,2]
[354919929,1740817847104,-500.0,0.00032876,2]
[354919930,1740817847114,-500.0,0.00032876,2]
[354919931,1740817847124,-500.0,0.00032876,2]
[354919932,1740817847134,-500.0,0.00032876,2]
[354919933,1740817847145,-502.71714891,0.00032876,120]
[354919934,1740817847154,-1528.64,0.00032876,2]
[354919935,1740817847164,-500.0,0.00032876,2]
[354919936,1740817847173,-500.0,0.00032876,2]
[354919937,1740817847183,-500.0,0.00032876,2]
[354919938,1740817847192,-500.0,0.00032876,2]
[354919939,1740817847202,-500.0,0.00032876,2]
[354919940,1740817847211,-500.0,0.00032876,2]
[354919941,1740817847221,-1864.31,0.00032876,2]
[354919942,1740817847231,-671.41,0.00032876,2]
[354919943,1740817847240,-528.74505089,0.00032876,2]
[354919944,1740817847249,-500.0,0.00032876,2]
[354919945,1740817847259,-500.0,0.00032876,2]
[354919946,1740817847269,-502.95938668,0.00032876,2]
[354919947,1740817847278,-500.0,0.00032876,2]
[354919948,1740817847288,-500.0,0.00032876,2]
[354919949,1740817847297,-500.0,0.00032876,2]
[354919950,1740817847307,-500.0,0.00032876,2]
[354919951,1740817847316,-500.0,0.00032876,2]
[354919952,1740817847325,-500.0,0.00032876,2]
[354919953,1740817847335,-8712.91,0.00032876,2]
[354919954,1740817847344,-500.0,0.00032876,2]
[354919955,1740817847621,-606.47,0.00032876,2]
[354919956,1740817847646,-500.0,0.00032876,2]
[354919957,1740817847657,-500.0,0.00032876,2]
[354919958,1740817847667,-500.0,0.00032876,2]
[354919959,1740817847676,-500.0,0.00032876,2]
[354919960,1740817847685,-157.686614,0.00032877,2]
[354919961,1740817847694,-400.0,0.00032877,60]
[354919962,1740817847704,-5180.68,0.000329,30]
[354919963,1740817847713,-1123.64,0.000329,30]
[354919964,1740817847723,-151.0,0.000329,13]
[354919965,1740817847735,-151.0,0.000329,20]
[354919966,1740817847745,-151.0,0.000329,15]
[354919967,1740817847754,-3382.9,0.000329,30]
[354919968,1740817847764,-154200.68,0.000329,30]
[354919969,1740817847774,-8602.44,0.000329,30]
[354919970,1740817847783,-151.0,0.000329,14]
[354919971,1740817847793,-151.0,0.000329,12]